[Event "17th Memorial Lezcano Montalvo 2025"]
[Site "Gran Canaria"]
[Date "2025.04.17"]
[Round "6.49"]
[White "Vargas Tinoco, Martin Alonso"]
[Black "Cabrera Martel, Isaac"]
[Result "1/2-1/2"]
[Annotator "NA RC"]
[ECO "D00"]
[WhiteElo "1811"]
[BlackElo "1655"]
[PlyCount "132"]
[EventDate "2025.04.13"]
[EventType "swiss"]
[EventCountry "ESP"]
[SourceTitle "playchess.com"]
[Source "ChessBase"]
[SourceQuality "1"]
[TimeControl "5400+30"]

1. d4 {[%emt 0:00:04]} Nf6 {[%emt 0:00:05]} 2. Bf4 {[%emt 0:00:05]} d5 {[%emt 0:00:12]} 3. e3 {[%emt 0:00:09]} e6 {[%emt 0:00:12]} 4. Nd2 {[%emt 0:00:52]} Bd6 {[%emt 0:01:20]} 5. Bg3 {[%emt 0:00:13]} O-O {[%emt 0:01:43]} 6. Bd3 {[%emt 0:00:13]} c5 {[%emt 0:00:37]} 7. c3 {[%emt 0:00:27]} Qc7 {[%emt 0:00:36]} 8. f4 {[%emt 0:03:21]} cxd4 {[%emt 0:10:07]} 9. cxd4 {[%emt 0:00:08]} Nc6 {[%emt 0:00:10]} 10. Rc1 {[%emt 0:00:19]} Qb6 {[%emt 0:07:59]} 11. Qb3 {[%emt 0:02:23]} Qxb3 {[%emt 0:09:19]} 12. Nxb3 {[%emt 0:00:12]} Ng4 {[%emt 0:06:02]} 13. Ke2 {[%emt 0:05:31]} Ne7 {[%emt 0:03:47]} 14. h3 {[%emt 0:03:43]} Nf6 {[%emt 0:04:19]} 15. Nf3 {[%emt 0:04:28]} Ne4 {[%emt 0:09:35]} 16. Bxe4 {[%emt 0:05:43]} dxe4 {[%emt 0:00:29]} 17. Nfd2 {[%emt 0:00:08]} f5 {[%emt 0:00:40]} 18. Nc4 {[%emt 0:00:20]} Bc7 {[%emt 0:02:57]} 19. Rhd1 {[%emt 0:13:32]} Nd5 {[%emt 0:02:08]} 20. Be1 {[%emt 0:01:09]} Bd8 {[%emt 0:02:51]} 21. Ne5 {[%emt 0:12:02]} Be7 {[%emt 0:01:48]} 22. a3 {[%emt 0:08:41]} Rd8 {[%emt 0:06:12]} 23. Nc5 {[%emt 0:02:18]} b6 {[%emt 0:04:14]} 24. Na4 {[%emt 0:00:29]} Ba6+ {[%emt 0:01:04]} 25. Kf2 {[%emt 0:00:07]} Bb7 {[%emt 0:01:58]} 26. Nc6 {[%emt 0:07:14]} Rdc8 {[%emt 0:00:32]} 27. Nxe7+ {[%emt 0:02:44]} Nxe7 {[%emt 0:00:03]} 28. Bb4 {[%emt 0:00:46]} Nd5 {[%emt 0:00:39]} 29. Nc3 {[%emt 0:03:47]} Nxc3 {[%emt 0:05:26]} 30. Bxc3 {[%emt 0:01:41]} Bd5 {[%emt 0:00:44]} 31. g4 {[%emt 0:04:33]} Rc6 {[%emt 0:02:12]} 32. Kg3 {[%emt 0:03:16]} Rac8 {[%emt 0:01:04]} 33. h4 {[%emt 0:01:00]} g6 {[%emt 0:02:39]} 34. h5 {[%emt 0:00:50]} Kg7 {[%emt 0:00:46]} 35. hxg6 {[%emt 0:00:23]} hxg6 {[%emt 0:00:25]} 36. Rh1 {[%emt 0:00:10]} Rh8 {[%emt 0:00:24]} 37. Rxh8 {[%emt 0:00:41]} Kxh8 {[%emt 0:00:03]} 38. Rh1+ {[%emt 0:02:36]} Kg7 {[%emt 0:00:32]} 39. Kh4 {[%emt 0:04:09]} Kf6 {[%emt 0:00:03]} 40. Kg3 {[%emt 0:00:48]} Kg7 {[%emt 0:00:24]} 41. Rh2 {[%emt 0:01:29]} a5 {[%emt 0:03:59]} 42. Kh3 {[%emt 0:01:12]} Kf6 {[%emt 0:01:19]} 43. Be1 {[%emt 0:00:29]} Rc8 {[%emt 0:01:56]} 44. Bh4+ {[%emt 0:00:21]} Kf7 {[%emt 0:00:32]} 45. Kg3 {[%emt 0:00:20]} a4 {[%emt 0:02:45]} 46. Bg5 {[%emt 0:00:53]} Kg7 {[%emt 0:00:17]} 47. Be7 {[%emt 0:00:42]} Rc6 {[%emt 0:01:43]} 48. Kh4 {[%emt 0:02:21]} Kf7 {[%emt 0:01:27]} 49. Bd8 {[%emt 0:00:10]} Rc8 {[%emt 0:02:24]} 50. Bxb6 {[%emt 0:00:16]} Rh8+ {[%emt 0:00:10]} 51. Kg3 {[%emt 0:00:04]} Rxh2 {[%emt 0:00:12]} 52. Kxh2 {[%emt 0:00:04]} Bb3 {[%emt 0:00:41]} 53. Kg3 {[%emt 0:01:53]} Kf6 {[%emt 0:00:31]} 54. Kh4 {[%emt 0:01:58]} Bd1 {[%emt 0:01:01]} 55. Bd8+ {[%emt 0:00:58]} Kf7 {[%emt 0:00:17]} 56. gxf5 {[%emt 0:00:10]} gxf5 {[%emt 0:01:51]} 57. Kg3 {[%emt 0:01:41]} Bb3 {[%emt 0:00:09]} 58. Kf2 {[%emt 0:00:06]} Ke8 {[%emt 0:00:32]} 59. Ba5 {[%emt 0:00:27]} Kd7 {[%emt 0:00:12]} 60. Ke1 {[%emt 0:00:07]} Kc6 {[%emt 0:00:16]} 61. Kd2 {[%emt 0:00:07]} Kb5 {[%emt 0:00:27]} 62. Bc3 {[%emt 0:00:07]} Kc4 {[%emt 0:01:07]} 63. Ke2 {[%emt 0:00:40]} Kd5 {[%emt 0:00:12]} 64. Bb4 {[%emt 0:00:17]} Kc4 {[%emt 0:00:16]} 65. Kf2 {[%emt 0:00:09]} Kd3 {[%emt 0:00:21]} 66. Bc3 {[%emt 0:00:10]} Kc4 {[%emt 0:00:30]} 1/2-1/2

[Event "17th Memorial Lezcano Montalvo 2025"]
[Site "Gran Canaria"]
[Date "2025.04.17"]
[Round "6.50"]
[White "Delgado Armas, Francisco David"]
[Black "Sanchez Montesdeoca, Isaac"]
[Result "0-1"]
[Annotator "NA RC"]
[ECO "B80"]
[WhiteElo "1608"]
[BlackElo "1807"]
[PlyCount "44"]
[EventDate "2025.04.13"]
[EventType "swiss"]
[EventCountry "ESP"]
[SourceTitle "playchess.com"]
[Source "ChessBase"]
[SourceQuality "1"]
[TimeControl "5400+30"]

1. e4 {[%emt 0:00:22]} c5 {[%emt 0:00:06]} 2. Nf3 {[%emt 0:00:11]} d6 {[%emt 0:00:03]} 3. d4 {[%emt 0:00:11]} cxd4 {[%emt 0:00:05]} 4. Nxd4 {[%emt 0:00:08]} Nf6 {[%emt 0:00:07]} 5. Nc3 {[%emt 0:00:20]} Nc6 {[%emt 0:00:07]} 6. f3 {[%emt 0:00:22]} Bd7 {[%emt 0:06:31]} 7. Be3 {[%emt 0:00:37]} e6 {[%emt 0:01:49]} 8. Qd2 {[%emt 0:03:53]} Be7 {[%emt 0:00:08]} 9. O-O-O {[%emt 0:00:20]} a6 {[%emt 0:00:19]} 10. h4 {[%emt 0:01:23]} b5 {[%emt 0:00:38]} 11. g4 {[%emt 0:00:48]} b4 {[%emt 0:00:08]} 12. Nce2 {[%emt 0:02:51]} a5 {[%emt 0:00:15]} 13. Nf4 {[%emt 0:03:50]} a4 {[%emt 0:02:20]} 14. Bb5 {[%emt 0:00:55]} Nxd4 {[%emt 0:01:50]} 15. Bxd7+ {[%emt 0:00:08]} Nxd7 {[%emt 0:00:15]} 16. Nh5 {[%emt 0:00:57]} Nb3+ {[%emt 0:03:35]} 17. cxb3 {[%emt 0:00:21]} axb3 {[%emt 0:00:48]} 18. axb3 {[%emt 0:02:14]} Ra1+ {[%emt 0:01:02]} 19. Kc2 {[%emt 0:00:16]} Qc8+ {[%emt 0:00:26]} 20. Kd3 {[%emt 0:00:13]} Qa6+ {[%emt 0:00:08]} 21. Kd4 {[%emt 0:01:45]} Qb6+ {[%emt 0:02:22]} 22. Kc4 {[%emt 0:01:09]} Ne5# {[%emt 0:00:17]} 0-1

[Event "17th Memorial Lezcano Montalvo 2025"]
[Site "Gran Canaria"]
[Date "2025.04.17"]
[Round "6.51"]
[White "Trocoli Romero, Luis Dingyu"]
[Black "Oramas Medina, Miguel"]
[Result "1/2-1/2"]
[Annotator "NA RC"]
[ECO "D10"]
[WhiteElo "1599"]
[BlackElo "1796"]
[PlyCount "90"]
[EventDate "2025.04.13"]
[EventType "swiss"]
[EventCountry "ESP"]
[SourceTitle "playchess.com"]
[Source "ChessBase"]
[SourceQuality "1"]
[TimeControl "5400+30"]

1. d4 {[%emt 0:00:02]} d5 {[%emt 0:00:06]} 2. c4 {[%emt 0:00:03]} c6 {[%emt 0:00:07]} 3. Bf4 {[%emt 0:00:05]} dxc4 {[%emt 0:06:24]} 4. e3 {[%emt 0:05:47]} b5 {[%emt 0:00:52]} 5. a4 {[%emt 0:01:13]} Bf5 {[%emt 0:04:16]} 6. Nf3 {[%emt 0:01:32]} e6 {[%emt 0:05:45]} 7. Be2 {[%emt 0:00:59]} Nf6 {[%emt 0:04:32]} 8. O-O {[%emt 0:00:23]} Bd6 {[%emt 0:01:15]} 9. Bxd6 {[%emt 0:00:37]} Qxd6 {[%emt 0:00:11]} 10. axb5 {[%emt 0:00:38]} cxb5 {[%emt 0:00:09]} 11. b3 {[%emt 0:00:19]} Qc7 {[%emt 0:13:21]} 12. bxc4 {[%emt 0:01:57]} bxc4 {[%emt 0:00:16]} 13. Qa4+ {[%emt 0:01:29]} Nbd7 {[%emt 0:01:01]} 14. Qxc4 {[%emt 0:02:46]} Qxc4 {[%emt 0:03:24]} 15. Bxc4 {[%emt 0:00:07]} O-O {[%emt 0:01:28]} 16. Nbd2 {[%emt 0:08:00]} Rfb8 {[%emt 0:03:55]} 17. Nh4 {[%emt 0:06:44]} Ne4 {[%emt 0:05:27]} 18. Ndf3 {[%emt 0:14:50]} Nd6 {[%emt 0:06:06]} 19. Nxf5 {[%emt 0:08:52]} Nxc4 {[%emt 0:02:27]} 20. Ne7+ {[%emt 0:10:43]} Kf8 {[%emt 0:00:07]} 21. Nc6 {[%emt 0:00:10]} Rb7 {[%emt 0:00:58]} 22. Rfc1 {[%emt 0:05:21]} Ndb6 {[%emt 0:00:53]} 23. Na5 {[%emt 0:00:51]} Nxa5 {[%emt 0:03:02]} 24. Rxa5 {[%emt 0:00:08]} Rc8 {[%emt 0:01:28]} 25. Rxc8+ {[%emt 0:01:32]} Nxc8 {[%emt 0:00:10]} 26. g3 {[%emt 0:04:23]} f6 {[%emt 0:02:54]} 27. Nd2 {[%emt 0:02:36]} Nd6 {[%emt 0:02:09]} 28. Ra6 {[%emt 0:01:19]} Ke7 {[%emt 0:01:20]} 29. Kg2 {[%emt 0:01:26]} Kd7 {[%emt 0:05:23]} 30. Kg1 {[%emt 0:00:51]} Kc7 {[%emt 0:00:53]} 31. Kg2 {[%emt 0:01:16]} Kd7 {[%emt 0:00:42]} 32. Kf3 {[%emt 0:00:41]} Nc8 {[%emt 0:01:40]} 33. Nc4 {[%emt 0:02:28]} Rb4 {[%emt 0:01:11]} 34. Nd2 {[%emt 0:00:27]} Rb6 {[%emt 0:00:24]} 35. Ra2 {[%emt 0:00:51]} Kc7 {[%emt 0:02:45]} 36. Ne4 {[%emt 0:00:38]} Kb8 {[%emt 0:02:14]} 37. Nc5 {[%emt 0:00:17]} Ka8 {[%emt 0:00:10]} 38. Ke2 {[%emt 0:01:29]} Ne7 {[%emt 0:04:16]} 39. Kd2 {[%emt 0:04:38]} Nd5 {[%emt 0:03:42]} 40. e4 {[%emt 0:00:55]} Ne7 {[%emt 0:00:49]} 41. Ke3 {[%emt 0:04:13]} f5 {[%emt 0:01:08]} 42. f3 {[%emt 0:00:46]} Ng6 {[%emt 0:02:20]} 43. h4 {[%emt 0:01:33]} Nh8 {[%emt 0:00:08]} 44. Ra6 {[%emt 0:00:57]} Rxa6 {[%emt 0:01:06]} 45. Nxa6 {[%emt 0:00:06]} g6 {[%emt 0:00:29]} 1/2-1/2

[Event "17th Memorial Lezcano Montalvo 2025"]
[Site "Gran Canaria"]
[Date "2025.04.17"]
[Round "6.52"]
[White "Garcia Almeida, Valeria"]
[Black "Reinoso Andre, Lazaro Javier"]
[Result "1-0"]
[Annotator "NA COMBH"]
[ECO "A33"]
[WhiteElo "1582"]
[BlackElo "1796"]
[PlyCount "63"]
[EventDate "2025.04.13"]
[EventType "swiss"]
[EventCountry "ESP"]
[SourceTitle "playchess.com"]
[Source "ChessBase"]
[SourceQuality "1"]
[TimeControl "5400+30"]

1. c4 {[%emt 0:00:12]} c5 {[%emt 0:01:08]} 2. Nc3 {[%emt 0:01:01]} Nc6 {[%emt 0:00:00]} 3. g3 {[%emt 0:00:47]} e6 {[%emt 0:00:00]} 4. Bg2 {[%emt 0:04:53]} Nf6 {[%emt 0:00:11]} 5. e4 {[%emt 0:00:54]} Be7 {[%emt 0:01:58]} 6. Nge2 {[%emt 0:02:41]} O-O {[%emt 0:00:08]} 7. O-O {[%emt 0:03:11]} d6 {[%emt 1:30:35]} 8. d4 {[%emt 0:07:42]} cxd4 {[%emt 0:00:00]} 9. Nxd4 {[%emt 0:00:13]} Qb6 {[%emt 0:00:00]} 10. Nf3 {[%emt 0:09:07]} Rd8 {[%emt 0:00:00]} 11. Qe2 {[%emt 0:05:09]} d5 {[%emt 0:00:00]} 12. exd5 {[%emt 0:00:55]} exd5 {[%emt 0:00:00]} 13. cxd5 {[%emt 0:01:00]} Nxd5 {[%emt 0:00:00]} 14. Nxd5 {[%emt 0:00:51]} Rxd5 {[%emt 0:00:00]} 15. Nd2 {[%emt 0:00:20]} Re5 {[%emt 0:00:00]} 16. Qd1 {[%emt 0:04:16]} Be6 {[%emt 0:00:00]} 17. Nf3 {[%emt 0:01:39]} Rd8 {[%emt 0:00:00]} 18. Qa4 {[%emt 0:02:20]} Re2 {[%emt 0:00:00]} 19. Be3 {[%emt 0:16:40]} Bc5 {[%emt 0:00:00]} 20. Bxc5 {[%emt 0:12:54]} Qxc5 {[%emt 0:00:00]} 21. Rac1 {[%emt 0:00:35]} Qb6 {[%emt 0:00:00]} 22. Ng5 {[%emt 0:11:59]} Rdd2 {[%emt 0:00:00]} 23. Qf4 {[%emt 0:10:08]} h6 {[%emt 0:00:00]} 24. Nxe6 {[%emt 0:01:11]} fxe6 {[%emt 0:00:00]} 25. Bh3 {[%emt 0:01:04]} Nd4 {[%emt 0:00:00]} 26. Bg4 {[%emt 0:00:44]} e5 {[%emt 0:00:00]} 27. Rc8+ {[%emt 0:00:06]} Kh7 {[%emt 0:00:00]} 28. Bf5+ {[%emt 0:00:23]} Nxf5 {[%emt 0:00:00]} 29. Qxf5+ {[%emt 0:00:07]} Qg6 {[%emt 0:00:00]} 30. Rh8+ {[%emt 0:00:13]} Kxh8 {[%emt 0:00:00]} 31. Qxg6 {[%emt 0:00:03]} Rxb2 {[%emt 0:00:00]} 32. Rc1 {[%emt 0:00:20]} 1-0

[Event "17th Memorial Lezcano Montalvo 2025"]
[Site "Gran Canaria"]
[Date "2025.04.17"]
[Round "6.53"]
[White "Sanchez Ramirez, Gustavo"]
[Black "Hernandez De Armas, Leonardo"]
[Result "1/2-1/2"]
[Annotator "NA RC"]
[ECO "D02"]
[WhiteElo "1780"]
[BlackElo "1645"]
[PlyCount "82"]
[EventDate "2025.04.13"]
[EventType "swiss"]
[EventCountry "ESP"]
[SourceTitle "playchess.com"]
[Source "ChessBase"]
[SourceQuality "1"]
[TimeControl "5400+30"]

1. b3 {[%emt 0:00:14]} d5 {[%emt 0:01:10]} 2. Nf3 {[%emt 0:00:14]} Nc6 {[%emt 0:00:13]} 3. d4 {[%emt 0:01:25]} Bf5 {[%emt 0:01:02]} 4. e3 {[%emt 0:00:51]} Nf6 {[%emt 0:01:16]} 5. Ba3 {[%emt 0:01:30]} g6 {[%emt 0:13:13]} 6. c4 {[%emt 0:00:41]} Bxb1 {[%emt 0:01:10]} 7. Rxb1 {[%emt 0:00:39]} Bg7 {[%emt 0:00:30]} 8. Bd3 {[%emt 0:01:33]} O-O {[%emt 0:02:16]} 9. O-O {[%emt 0:00:08]} Re8 {[%emt 0:00:13]} 10. Re1 {[%emt 0:05:53]} e5 {[%emt 0:06:52]} 11. dxe5 {[%emt 0:00:37]} Nxe5 {[%emt 0:00:53]} 12. Nxe5 {[%emt 0:01:28]} Rxe5 {[%emt 0:00:00]} 13. Bb2 {[%emt 0:00:19]} Re8 {[%emt 0:00:23]} 14. cxd5 {[%emt 0:04:24]} Qxd5 {[%emt 0:04:39]} 15. Bc4 {[%emt 0:03:05]} Qa5 {[%emt 0:03:37]} 16. Qf3 {[%emt 0:01:07]} Qb6 {[%emt 0:04:07]} 17. Rbd1 {[%emt 0:07:38]} Qc6 {[%emt 0:01:56]} 18. Qxc6 {[%emt 0:01:06]} bxc6 {[%emt 0:00:57]} 19. Bxf6 {[%emt 0:01:22]} Bxf6 {[%emt 0:00:00]} 20. Rd7 {[%emt 0:02:09]} Re7 {[%emt 0:00:56]} 21. Red1 {[%emt 0:00:03]} Rae8 {[%emt 0:00:18]} 22. f4 {[%emt 0:02:08]} Rxd7 {[%emt 0:01:23]} 23. Rxd7 {[%emt 0:00:04]} Re7 {[%emt 0:00:09]} 24. Rxe7 {[%emt 0:01:18]} Bxe7 {[%emt 0:00:11]} 25. g4 {[%emt 0:00:26]} Kf8 {[%emt 0:03:49]} 26. e4 {[%emt 0:00:55]} g5 {[%emt 0:01:16]} 27. f5 {[%emt 0:00:29]} f6 {[%emt 0:00:16]} 28. Kg2 {[%emt 0:00:15]} Bd6 {[%emt 0:00:33]} 29. h3 {[%emt 0:00:09]} h6 {[%emt 0:00:31]} 30. Kf3 {[%emt 0:00:06]} Be5 {[%emt 0:01:01]} 31. Ke2 {[%emt 0:00:21]} Ke7 {[%emt 0:00:11]} 32. Kd3 {[%emt 0:00:02]} Kd6 {[%emt 0:00:23]} 33. b4 {[%emt 0:01:52]} c5 {[%emt 0:00:54]} 34. b5 {[%emt 0:01:09]} c6 {[%emt 0:02:02]} 35. a4 {[%emt 0:00:39]} cxb5 {[%emt 0:00:03]} 36. axb5 {[%emt 0:00:04]} Bd4 {[%emt 0:00:54]} 37. Bd5 {[%emt 0:00:10]} Kc7 {[%emt 0:00:44]} 38. Kc4 {[%emt 0:00:05]} Kb6 {[%emt 0:00:00]} 39. Bf7 {[%emt 0:03:41]} a6 {[%emt 0:00:46]} 40. bxa6 {[%emt 1:00:11]} Kxa6 {[%emt 0:49:43]} 41. Be8 {[%emt 0:00:00]} Ka5 {[%emt 0:00:30]} 1/2-1/2

[Event "17th Memorial Lezcano Montalvo 2025"]
[Site "Gran Canaria"]
[Date "2025.04.17"]
[Round "6.54"]
[White "Rodriguez Trujillo, Cristian"]
[Black "Velasquez Vargas, Sebastian"]
[Result "0-1"]
[Annotator "NA RC"]
[ECO "C56"]
[WhiteElo "1562"]
[BlackElo "1777"]
[PlyCount "99"]
[EventDate "2025.04.13"]
[EventType "swiss"]
[EventCountry "ESP"]
[SourceTitle "playchess.com"]
[Source "ChessBase"]
[SourceQuality "1"]
[TimeControl "5400+30"]

1. e4 {[%emt 0:00:07]} e5 {[%emt 0:00:06]} 2. Nf3 {[%emt 0:00:03]} Nc6 {[%emt 0:00:12]} 3. d4 {[%emt 0:00:13]} exd4 {[%emt 0:00:13]} 4. Bc4 {[%emt 0:00:09]} Nf6 {[%emt 0:00:51]} 5. O-O {[%emt 0:01:50]} Be7 {[%emt 0:01:27]} 6. Re1 {[%emt 0:04:52]} d6 {[%emt 0:00:20]} 7. h3 {[%emt 0:01:23]} Ne5 {[%emt 0:00:25]} 8. Bb3 {[%emt 0:09:25]} Nxf3+ {[%emt 0:01:35]} 9. Qxf3 {[%emt 0:00:20]} O-O {[%emt 0:02:25]} 10. Bf4 {[%emt 0:06:39]} Be6 {[%emt 0:01:30]} 11. e5 {[%emt 0:03:59]} Bxb3 {[%emt 0:00:36]} 12. exf6 {[%emt 0:00:36]} Bxf6 {[%emt 0:00:14]} 13. Qxb3 {[%emt 0:01:12]} Rb8 {[%emt 0:00:47]} 14. Nd2 {[%emt 0:00:07]} Re8 {[%emt 0:01:29]} 15. Nf3 {[%emt 0:00:35]} Rxe1+ {[%emt 0:00:16]} 16. Rxe1 {[%emt 0:00:07]} Qd7 {[%emt 0:00:43]} 17. Bg5 {[%emt 0:03:06]} Bxg5 {[%emt 0:01:06]} 18. Nxg5 {[%emt 0:00:11]} b6 {[%emt 0:00:28]} 19. Qd3 {[%emt 0:01:22]} g6 {[%emt 0:00:40]} 20. Qxd4 {[%emt 0:01:21]} c5 {[%emt 0:02:40]} 21. Qf6 {[%emt 0:03:06]} Re8 {[%emt 0:00:16]} 22. Rxe8+ {[%emt 0:00:52]} Qxe8 {[%emt 0:00:07]} 23. Qf3 {[%emt 0:13:33]} Qe1+ {[%emt 0:01:56]} 24. Kh2 {[%emt 0:01:48]} Qe5+ {[%emt 0:00:21]} 25. Qg3 {[%emt 0:00:30]} Qxb2 {[%emt 0:02:05]} 26. Qxd6 {[%emt 0:00:31]} Kg7 {[%emt 0:08:52]} 27. Qd5 {[%emt 0:03:28]} Qf6 {[%emt 0:00:33]} 28. Ne4 {[%emt 0:05:50]} Qf4+ {[%emt 0:01:26]} 29. g3 {[%emt 0:00:20]} Qb8 {[%emt 0:02:55]} 30. Nd6 {[%emt 0:02:31]} Qf8 {[%emt 0:01:05]} 31. Qe5+ {[%emt 0:02:13]} f6 {[%emt 0:02:41]} 32. Ne8+ {[%emt 0:00:40]} Kf7 {[%emt 0:02:04]} 33. Nxf6 {[%emt 0:00:37]} h5 {[%emt 0:03:37]} 34. Nh7 {[%emt 0:04:01]} Qc8 {[%emt 0:01:52]} 35. Ng5+ {[%emt 0:06:19]} Kg8 {[%emt 0:00:26]} 36. Qe6+ {[%emt 0:00:40]} Qxe6 {[%emt 0:00:08]} 37. Nxe6 {[%emt 0:00:06]} b5 {[%emt 0:00:05]} 38. Nxc5 {[%emt 0:00:14]} a5 {[%emt 0:00:05]} 39. a4 {[%emt 0:00:35]} bxa4 {[%emt 0:00:06]} 40. Nxa4 {[%emt 0:00:11]} Kf7 {[%emt 0:00:03]} 41. Kg2 {[%emt 0:01:06]} Ke6 {[%emt 0:00:05]} 42. Kf3 {[%emt 0:00:11]} Ke5 {[%emt 0:00:17]} 43. Ke3 {[%emt 0:00:23]} g5 {[%emt 0:00:18]} 44. f4+ {[%emt 0:01:35]} Kf5 {[%emt 0:00:21]} 45. fxg5 {[%emt 0:00:14]} Kxg5 {[%emt 0:00:05]} 46. c4 {[%emt 0:00:13]} Kf5 {[%emt 0:00:06]} 47. g4+ {[%emt 0:00:43]} hxg4 {[%emt 0:00:10]} 48. hxg4+ {[%emt 0:00:12]} Kxg4 {[%emt 0:00:07]} 49. Ke4 {[%emt 0:00:05]} Kg5 {[%emt 0:00:05]} 50. Ke5 {[%emt 0:00:08]} 0-1

[Event "17th Memorial Lezcano Montalvo 2025"]
[Site "Gran Canaria"]
[Date "2025.04.17"]
[Round "6.55"]
[White "Rossello Padron, Carlos"]
[Black "Cattani, Cloe"]
[Result "1-0"]
[Annotator "NA RC"]
[ECO "A01"]
[WhiteElo "1776"]
[BlackElo "1614"]
[PlyCount "73"]
[EventDate "2025.04.13"]
[EventType "swiss"]
[EventCountry "ESP"]
[SourceTitle "playchess.com"]
[Source "ChessBase"]
[SourceQuality "1"]
[TimeControl "5400+30"]

1. b3 {[%emt 0:00:12]} e5 {[%emt 0:00:15]} 2. Bb2 {[%emt 0:00:27]} Nc6 {[%emt 0:00:10]} 3. e3 {[%emt 0:00:33]} Nf6 {[%emt 0:00:44]} 4. c4 {[%emt 0:02:52]} d5 {[%emt 0:04:30]} 5. cxd5 {[%emt 0:00:58]} Nxd5 {[%emt 0:00:19]} 6. Bb5 {[%emt 0:00:31]} Bd6 {[%emt 0:12:04]} 7. Nf3 {[%emt 0:04:40]} Bd7 {[%emt 0:10:41]} 8. Bxc6 {[%emt 0:01:58]} Bxc6 {[%emt 0:01:10]} 9. Nxe5 {[%emt 0:03:38]} Bb5 {[%emt 0:08:11]} 10. Nc4 {[%emt 0:02:37]} Nb4 {[%emt 0:03:32]} 11. d4 {[%emt 0:00:47]} Qg5 {[%emt 0:03:55]} 12. Kf1 {[%emt 0:03:21]} Bc6 {[%emt 0:02:24]} 13. e4 {[%emt 0:01:48]} Bxe4 {[%emt 0:06:02]} 14. f3 {[%emt 0:00:10]} Bd3+ {[%emt 0:04:00]} 15. Kf2 {[%emt 0:02:19]} O-O-O {[%emt 0:05:05]} 16. Nxd6+ {[%emt 0:01:49]} Rxd6 {[%emt 0:00:53]} 17. Bc3 {[%emt 0:05:11]} Rg6 {[%emt 0:03:03]} 18. g3 {[%emt 0:01:34]} Re8 {[%emt 0:03:43]} 19. Re1 {[%emt 0:02:24]} Rge6 {[%emt 0:04:59]} 20. f4 {[%emt 0:02:46]} Qd5 {[%emt 0:07:52]} 21. Re5 {[%emt 0:00:59]} Rxe5 {[%emt 0:00:39]} 22. fxe5 {[%emt 0:00:53]} Bc2 {[%emt 0:05:06]} 23. Qg4+ {[%emt 0:00:25]} Kb8 {[%emt 0:00:13]} 24. Bxb4 {[%emt 0:00:32]} Qh1 {[%emt 0:04:36]} 25. Be1 {[%emt 0:03:14]} Qxh2+ {[%emt 0:01:10]} 26. Ke3 {[%emt 0:00:54]} Qg1+ {[%emt 0:00:51]} 27. Kd2 {[%emt 0:00:17]} Qg2+ {[%emt 0:01:59]} 28. Qe2 {[%emt 0:00:28]} Qc6 {[%emt 0:01:30]} 29. Nc3 {[%emt 0:00:19]} Bg6 {[%emt 0:00:19]} 30. Rc1 {[%emt 0:02:40]} f6 {[%emt 0:01:10]} 31. d5 {[%emt 0:02:21]} Qb6 {[%emt 0:02:38]} 32. Bf2 {[%emt 0:01:38]} Qb4 {[%emt 0:00:40]} 33. e6 {[%emt 0:01:07]} Qa3 {[%emt 0:00:40]} 34. Kd1 {[%emt 0:01:10]} Bf7 {[%emt 0:01:34]} 35. Nb5 {[%emt 0:01:15]} Qb4 {[%emt 0:00:40]} 36. Qc4 {[%emt 0:01:02]} Qxc4 {[%emt 0:00:22]} 37. Rxc4 {[%emt 0:00:29]} 1-0

[Event "17th Memorial Lezcano Montalvo 2025"]
[Site "Gran Canaria"]
[Date "2025.04.17"]
[Round "6.56"]
[White "Martin Gonzalez, Lucas"]
[Black "Cappelle, Cedric"]
[Result "0-1"]
[Annotator "NA COMBH"]
[ECO "C00"]
[WhiteElo "1547"]
[BlackElo "1774"]
[PlyCount "70"]
[EventDate "2025.04.13"]
[EventType "swiss"]
[EventCountry "ESP"]
[SourceTitle "playchess.com"]
[Source "ChessBase"]
[SourceQuality "1"]
[TimeControl "5400+30"]

1. e4 {[%emt 1:31:00]} e6 {[%emt 0:03:56]} 2. d3 {[%emt 0:00:00]} d5 {[%emt 0:00:09]} 3. Nd2 {[%emt 0:00:00]} Nf6 {[%emt 0:00:50]} 4. g3 {[%emt 0:00:00]} Nc6 {[%emt 0:01:13]} 5. Bg2 {[%emt 0:00:00]} Bc5 {[%emt 0:01:52]} 6. c3 {[%emt 0:00:00]} e5 {[%emt 0:06:35]} 7. exd5 {[%emt 0:00:00]} Nxd5 {[%emt 0:00:09]} 8. Ne4 {[%emt 0:00:00]} Bb6 {[%emt 0:00:53]} 9. Nf3 {[%emt 0:00:00]} O-O {[%emt 0:02:50]} 10. O-O {[%emt 0:00:00]} Bg4 {[%emt 0:02:02]} 11. h3 {[%emt 0:00:00]} Bh5 {[%emt 0:03:02]} 12. g4 {[%emt 0:00:00]} Bg6 {[%emt 0:00:05]} 13. Re1 {[%emt 0:00:00]} f5 {[%emt 0:07:59]} 14. gxf5 {[%emt 0:00:00]} Bxf5 {[%emt 0:02:26]} 15. a3 {[%emt 0:00:00]} Qd7 {[%emt 0:06:39]} 16. c4 {[%emt 0:00:00]} Bxh3 {[%emt 0:17:31]} 17. cxd5 {[%emt 0:00:00]} Bxg2 {[%emt 0:00:22]} 18. Kxg2 {[%emt 0:00:00]} Qg4+ {[%emt 0:00:52]} 19. Ng3 {[%emt 0:00:00]} Ne7 {[%emt 0:00:29]} 20. Rxe5 {[%emt 0:00:00]} Ng6 {[%emt 0:02:09]} 21. Rg5 {[%emt 0:00:00]} Nh4+ {[%emt 0:00:13]} 22. Kf1 {[%emt 0:00:00]} Qh3+ {[%emt 0:01:27]} 23. Ke2 {[%emt 0:00:00]} Nxf3 {[%emt 0:04:25]} 24. Qh1 {[%emt 0:00:00]} Rae8+ {[%emt 0:04:12]} 25. Be3 {[%emt 0:00:00]} Qxh1 {[%emt 0:00:47]} 26. Rxh1 {[%emt 0:00:00]} Nxg5 {[%emt 0:00:13]} 27. d6 {[%emt 0:00:00]} cxd6 {[%emt 0:00:20]} 28. d4 {[%emt 0:00:00]} Bxd4 {[%emt 0:00:30]} 29. Nf5 {[%emt 0:00:00]} Rxf5 {[%emt 0:00:31]} 30. f4 {[%emt 0:00:00]} Rxe3+ {[%emt 0:00:26]} 31. Kd2 {[%emt 0:00:00]} Rxf4 {[%emt 0:00:23]} 32. a4 {[%emt 0:00:00]} Rf2+ {[%emt 0:00:11]} 33. Kd1 {[%emt 0:00:00]} Rxb2 {[%emt 0:00:40]} 34. a5 {[%emt 0:00:00]} Ra3 {[%emt 0:00:07]} 35. a6 {[%emt 0:00:00]} Ra1# {[%emt 0:00:40]} 0-1